[Event "Titled Tuesday Blitz January 17 Late 2023"]
[White "Paravyan, David"]
[Black "Zhigalko, Sergei"]
[WhiteFideId "4194985"]
[BlackFideId "13502956"]
[WhiteElo "2601"]
[BlackElo "2572"]
[Result "1-0"]
[Round "09"]
[TimeControl "180+2"]
[Date "2023.01.17"]
[WhiteClock "0:00:05"]
[BlackClock "0:00:01"]

1. d4 {[%clk 0:03:00]}  Nf6 {[%clk 0:03:00]} 2. c4 {[%clk 0:03:01]}  e6 {[%clk 0:03:00]} 3. Nf3 {[%clk 0:03:02]}  b6 {[%clk 0:03:00]} 4. a3 {[%clk 0:03:00]}  Ba6 {[%clk 0:03:00]} 5. Qc2 {[%clk 0:02:57]}  Bb7 {[%clk 0:03:00]} 6. Nc3 {[%clk 0:02:56]}  c5 {[%clk 0:03:00]} 7. dxc5 {[%clk 0:02:45]}  bxc5 {[%clk 0:03:00]} 8. Bf4 {[%clk 0:02:40]}  Qb6 {[%clk 0:02:58]} 9. e3 {[%clk 0:02:33]}  Be7 {[%clk 0:02:53]} 10. Be2 {[%clk 0:02:33]}  O-O {[%clk 0:02:53]} 11. h3 {[%clk 0:02:29]}  h6 {[%clk 0:02:52]} 12. O-O {[%clk 0:02:27]}  d6 {[%clk 0:02:43]} 13. Rfd1 {[%clk 0:02:27]}  Rd8 {[%clk 0:02:43]} 14. b4 {[%clk 0:02:21]}  Nbd7 {[%clk 0:02:15]} 15. Rab1 {[%clk 0:02:21]}  cxb4 {[%clk 0:02:08]} 16. axb4 {[%clk 0:02:20]}  Rac8 {[%clk 0:02:06]} 17. c5 {[%clk 0:01:32]}  dxc5 {[%clk 0:01:45]} 18. bxc5 {[%clk 0:01:33]}  Qxc5 {[%clk 0:01:05]} 19. Rxb7 {[%clk 0:01:33]}  Qxc3 {[%clk 0:01:03]} 20. Qxc3 {[%clk 0:01:33]}  Rxc3 {[%clk 0:01:03]} 21. Rxa7 {[%clk 0:01:23]}  Nd5 {[%clk 0:00:58]} 22. Bg3 {[%clk 0:01:19]}  Rcc8 {[%clk 0:00:54]} 23. Rxd5 {[%clk 0:00:44]}  exd5 {[%clk 0:00:51]} 24. Bb5 {[%clk 0:00:45]}  Nc5 {[%clk 0:00:16]} 25. Rxe7 {[%clk 0:00:43]}  Ne4 {[%clk 0:00:17]} 26. Kh2 {[%clk 0:00:38]}  Nxg3 {[%clk 0:00:10]} 27. Kxg3 {[%clk 0:00:39]}  Rc2 {[%clk 0:00:11]} 28. Nd4 {[%clk 0:00:36]}  Rb2 {[%clk 0:00:10]} 29. Be2 {[%clk 0:00:35]}  Rd6 {[%clk 0:00:09]} 30. Re8+ {[%clk 0:00:19]}  Kh7 {[%clk 0:00:09]} 31. Bd3+ {[%clk 0:00:17]}  g6 {[%clk 0:00:10]} 32. Be2 {[%clk 0:00:17]}  Kg7 {[%clk 0:00:07]} 33. Bf3 {[%clk 0:00:17]}  h5 {[%clk 0:00:07]} 34. h4 {[%clk 0:00:17]}  Rd2 {[%clk 0:00:04]} 35. Re7 {[%clk 0:00:16]}  Kf8 {[%clk 0:00:04]} 36. Ra7 {[%clk 0:00:16]}  Kg8 {[%clk 0:00:04]} 37. Ra5 {[%clk 0:00:16]}  Rb6 {[%clk 0:00:04]} 38. Bxd5 {[%clk 0:00:16]}  Rbb2 {[%clk 0:00:05]} 39. Ra7 {[%clk 0:00:04]}  Rxf2 {[%clk 0:00:02]} 40. Bf3 {[%clk 0:00:04]}  Kf8 {[%clk 0:00:02]} 41. Nc6 {[%clk 0:00:04]}  Rf1 {[%clk 0:00:01]} 42. Ne5 {[%clk 0:00:04]}  Kg8 {[%clk 0:00:01]} 43. Nxf7 {[%clk 0:00:04]}  Rb5 {[%clk 0:00:01]} 44. Ng5 {[%clk 0:00:04]}  Re5 {[%clk 0:00:01]} 45. Kf4 {[%clk 0:00:05]}  Rf5+ {[%clk 0:00:01]} 46. Kg3 {[%clk 0:00:05]}  Rc1 {[%clk 0:00:01]} 47. Ra6 {[%clk 0:00:05]}  Kg7 {[%clk 0:00:01]} 48. Be4 {[%clk 0:00:05]}  Rf6 {[%clk 0:00:01]} 49. Ra7+ {[%clk 0:00:05]}  Kf8 {[%clk 0:00:01]} 50. Nh7+ {[%clk 0:00:05]} 1-0


[Site "https://www.chess.com"]

[Event "Titled Tuesday Blitz January 17 Late 2023"]
[White "Chigaev, Maksim"]
[Black "Baskakov, Egor"]
[WhiteFideId "4108116"]
[BlackFideId "24197866"]
[WhiteElo "2628"]
[BlackElo "2215"]
[Result "1-0"]
[Round "09"]
[TimeControl "180+2"]
[Date "2023.01.17"]
[WhiteClock "0:00:03"]
[BlackClock "0:00:02"]

1. e4 {[%clk 0:03:00]}  c5 {[%clk 0:02:59]} 2. Nf3 {[%clk 0:03:01]}  Nf6 {[%clk 0:03:00]} 3. Nc3 {[%clk 0:03:01]}  d5 {[%clk 0:02:59]} 4. exd5 {[%clk 0:03:02]}  Nxd5 {[%clk 0:03:00]} 5. Bb5+ {[%clk 0:03:03]}  Bd7 {[%clk 0:03:00]} 6. Ne5 {[%clk 0:03:03]}  e6 {[%clk 0:03:01]} 7. Nxd7 {[%clk 0:02:49]}  Nxd7 {[%clk 0:03:00]} 8. Nxd5 {[%clk 0:02:49]}  exd5 {[%clk 0:03:00]} 9. O-O {[%clk 0:02:48]}  a6 {[%clk 0:02:58]} 10. Re1+ {[%clk 0:02:40]}  Be7 {[%clk 0:02:58]} 11. Bf1 {[%clk 0:02:38]}  O-O {[%clk 0:02:56]} 12. d4 {[%clk 0:02:38]}  Bf6 {[%clk 0:02:57]} 13. Be3 {[%clk 0:02:32]}  Rc8 {[%clk 0:02:55]} 14. c3 {[%clk 0:02:29]}  Qb6 {[%clk 0:02:39]} 15. dxc5 {[%clk 0:02:21]}  Qxb2 {[%clk 0:02:25]} 16. Qxd5 {[%clk 0:02:20]}  Rfd8 {[%clk 0:02:21]} 17. Rab1 {[%clk 0:02:13]}  Qxc3 {[%clk 0:02:20]} 18. Rec1 {[%clk 0:02:11]}  Qa5 {[%clk 0:01:59]} 19. Rxb7 {[%clk 0:02:04]}  Ne5 {[%clk 0:01:36]} 20. Qb3 {[%clk 0:01:59]}  Ng4 {[%clk 0:01:37]} 21. Qxf7+ {[%clk 0:01:54]}  Kh8 {[%clk 0:01:36]} 22. c6 {[%clk 0:00:43]}  Nxe3 {[%clk 0:01:27]} 23. fxe3 {[%clk 0:00:40]}  Qd2 {[%clk 0:01:27]} 24. Rbb1 {[%clk 0:00:36]}  Qxe3+ {[%clk 0:01:24]} 25. Kh1 {[%clk 0:00:36]}  Be5 {[%clk 0:01:04]} 26. Re1 {[%clk 0:00:25]}  Qg5 {[%clk 0:00:54]} 27. Rbd1 {[%clk 0:00:16]}  Rxd1 {[%clk 0:00:33]} 28. Rxd1 {[%clk 0:00:16]}  Qh6 {[%clk 0:00:28]} 29. g3 {[%clk 0:00:10]}  Bxg3 {[%clk 0:00:27]} 30. h3 {[%clk 0:00:08]}  Be5 {[%clk 0:00:20]} 31. Bg2 {[%clk 0:00:08]}  Qg5 {[%clk 0:00:17]} 32. Qd7 {[%clk 0:00:08]}  Rg8 {[%clk 0:00:15]} 33. Qg4 {[%clk 0:00:08]}  Qe3 {[%clk 0:00:15]} 34. Rf1 {[%clk 0:00:06]}  Bc7 {[%clk 0:00:14]} 35. h4 {[%clk 0:00:02]}  Qe5 {[%clk 0:00:14]} 36. Qh3 {[%clk 0:00:03]}  h6 {[%clk 0:00:12]} 37. Rd1 {[%clk 0:00:03]}  Rf8 {[%clk 0:00:12]} 38. a4 {[%clk 0:00:03]}  Rf4 {[%clk 0:00:10]} 39. Rf1 {[%clk 0:00:02]}  Qf6 {[%clk 0:00:08]} 40. Rxf4 {[%clk 0:00:02]}  Qxf4 {[%clk 0:00:09]} 41. h5 {[%clk 0:00:02]}  Qc1+ {[%clk 0:00:08]} 42. Bf1 {[%clk 0:00:02]}  Qxc6+ {[%clk 0:00:08]} 43. Qg2 {[%clk 0:00:03]}  Qd6 {[%clk 0:00:08]} 44. Qa8+ {[%clk 0:00:03]}  Bb8 {[%clk 0:00:08]} 45. Qg2 {[%clk 0:00:03]}  a5 {[%clk 0:00:08]} 46. Qh3 {[%clk 0:00:03]}  Qd5+ {[%clk 0:00:06]} 47. Kg1 {[%clk 0:00:03]}  Ba7+ {[%clk 0:00:06]} 48. Kh2 {[%clk 0:00:04]}  Qe5+ {[%clk 0:00:06]} 49. Kh1 {[%clk 0:00:04]}  Qd5+ {[%clk 0:00:06]} 50. Kh2 {[%clk 0:00:04]}  Bb8+ {[%clk 0:00:05]} 51. Kg1 {[%clk 0:00:04]}  Qc5+ {[%clk 0:00:05]} 52. Kh1 {[%clk 0:00:04]}  Qf8 {[%clk 0:00:06]} 53. Bd3 {[%clk 0:00:02]}  Be5 {[%clk 0:00:06]} 54. Qg4 {[%clk 0:00:02]}  Qa8+ {[%clk 0:00:03]} 55. Be4 {[%clk 0:00:02]}  Qf8 {[%clk 0:00:02]} 56. Kg2 {[%clk 0:00:03]}  Qf4 {[%clk 0:00:02]} 57. Qc8+ {[%clk 0:00:03]} 1-0


[Site "https://www.chess.com"]

[Event "Titled Tuesday Blitz January 17 Late 2023"]
[White "Urazayev, Arystanbek"]
[Black "Jobava, Baadur"]
[WhiteFideId "13709810"]
[BlackFideId "13601520"]
[WhiteElo "2460"]
[BlackElo "2578"]
[Result "1-0"]
[Round "09"]
[TimeControl "180+2"]
[Date "2023.01.17"]
[WhiteClock "0:00:08"]
[BlackClock "0:00:01"]

1. e4 {[%clk 0:03:00]}  d6 {[%clk 0:02:44]} 2. d4 {[%clk 0:03:00]}  Nf6 {[%clk 0:02:40]} 3. Nc3 {[%clk 0:03:00]}  e5 {[%clk 0:02:40]} 4. Nf3 {[%clk 0:03:01]}  Nbd7 {[%clk 0:02:40]} 5. Rg1 {[%clk 0:03:01]}  g6 {[%clk 0:02:41]} 6. g4 {[%clk 0:03:01]}  Bg7 {[%clk 0:02:41]} 7. g5 {[%clk 0:03:01]}  Nh5 {[%clk 0:02:42]} 8. Be3 {[%clk 0:03:02]}  O-O {[%clk 0:02:42]} 9. Qd2 {[%clk 0:03:00]}  c6 {[%clk 0:02:42]} 10. O-O-O {[%clk 0:02:51]}  Qe7 {[%clk 0:02:43]} 11. dxe5 {[%clk 0:02:45]}  dxe5 {[%clk 0:02:44]} 12. Qd6 {[%clk 0:02:31]}  Qxd6 {[%clk 0:02:36]} 13. Rxd6 {[%clk 0:02:30]}  Re8 {[%clk 0:02:37]} 14. Bh3 {[%clk 0:02:18]}  Nb6 {[%clk 0:02:34]} 15. Bxc8 {[%clk 0:02:17]}  Raxc8 {[%clk 0:02:35]} 16. b3 {[%clk 0:02:17]}  Nf4 {[%clk 0:02:32]} 17. Rgd1 {[%clk 0:02:06]}  Bf8 {[%clk 0:02:31]} 18. R6d2 {[%clk 0:02:03]}  Ng2 {[%clk 0:02:26]} 19. Bxb6 {[%clk 0:01:58]}  axb6 {[%clk 0:02:27]} 20. Rd7 {[%clk 0:01:58]}  Rb8 {[%clk 0:02:15]} 21. Ne2 {[%clk 0:01:36]}  Bc5 {[%clk 0:02:08]} 22. Rc7 {[%clk 0:01:01]}  Ba3+ {[%clk 0:01:40]} 23. Kb1 {[%clk 0:00:58]}  Red8 {[%clk 0:01:40]} 24. Rd3 {[%clk 0:00:59]}  Bd6 {[%clk 0:01:29]} 25. Rxd6 {[%clk 0:00:58]}  Rxd6 {[%clk 0:01:30]} 26. Nxe5 {[%clk 0:00:58]}  Rd2 {[%clk 0:01:24]} 27. Ng3 {[%clk 0:00:37]}  Rxf2 {[%clk 0:01:22]} 28. Nd7 {[%clk 0:00:31]}  Rd8 {[%clk 0:01:22]} 29. e5 {[%clk 0:00:29]}  Nf4 {[%clk 0:00:37]} 30. Ne4 {[%clk 0:00:30]}  Rxh2 {[%clk 0:00:35]} 31. Ndf6+ {[%clk 0:00:30]}  Kg7 {[%clk 0:00:33]} 32. Nd6 {[%clk 0:00:31]}  Rf8 {[%clk 0:00:33]} 33. Nfe8+ {[%clk 0:00:26]}  Kg8 {[%clk 0:00:31]} 34. Nf6+ {[%clk 0:00:23]}  Kg7 {[%clk 0:00:31]} 35. Nfe8+ {[%clk 0:00:19]}  Rxe8 {[%clk 0:00:25]} 36. Nxe8+ {[%clk 0:00:16]}  Kf8 {[%clk 0:00:26]} 37. Nf6 {[%clk 0:00:08]}  Kg7 {[%clk 0:00:01]} 38. Rc8 {[%clk 0:00:08]} 1-0


[Site "https://www.chess.com"]

[Event "Titled Tuesday Blitz January 17 Late 2023"]
[White "Dominguez Perez, Leinier"]
[Black "Leiva, Gianmarco"]
[WhiteFideId "3503240"]
[BlackFideId "3804399"]
[WhiteElo "2739"]
[BlackElo "2392"]
[Result "1-0"]
[Round "09"]
[TimeControl "180+2"]
[Date "2023.01.17"]
[WhiteClock "0:00:51"]
[BlackClock "0:00:02"]

1. d4 {[%clk 0:03:00]}  Nf6 {[%clk 0:02:58]} 2. Nf3 {[%clk 0:03:00]}  d5 {[%clk 0:02:56]} 3. e3 {[%clk 0:03:00]}  e6 {[%clk 0:02:54]} 4. Bd3 {[%clk 0:02:58]}  Bd6 {[%clk 0:02:54]} 5. O-O {[%clk 0:02:56]}  O-O {[%clk 0:02:54]} 6. b3 {[%clk 0:02:53]}  b6 {[%clk 0:02:54]} 7. c4 {[%clk 0:02:46]}  Bb7 {[%clk 0:02:51]} 8. cxd5 {[%clk 0:02:43]}  exd5 {[%clk 0:02:51]} 9. Ba3 {[%clk 0:02:42]}  Bxa3 {[%clk 0:02:13]} 10. Nxa3 {[%clk 0:02:43]}  a6 {[%clk 0:02:13]} 11. Nb1 {[%clk 0:02:31]}  Nbd7 {[%clk 0:02:07]} 12. Nc3 {[%clk 0:02:30]}  Qe7 {[%clk 0:02:06]} 13. Rc1 {[%clk 0:02:24]}  Rfe8 {[%clk 0:01:51]} 14. Qe2 {[%clk 0:02:19]}  Qd6 {[%clk 0:01:42]} 15. Qb2 {[%clk 0:02:16]}  Re7 {[%clk 0:01:28]} 16. Ne2 {[%clk 0:02:09]}  g6 {[%clk 0:01:18]} 17. Nf4 {[%clk 0:02:04]}  Ne4 {[%clk 0:01:06]} 18. Rfd1 {[%clk 0:02:00]}  f6 {[%clk 0:00:56]} 19. Qc2 {[%clk 0:01:49]}  c6 {[%clk 0:00:55]} 20. Nd2 {[%clk 0:01:41]}  Nxd2 {[%clk 0:00:46]} 21. Qxd2 {[%clk 0:01:33]}  Kg7 {[%clk 0:00:43]} 22. Qe2 {[%clk 0:01:26]}  a5 {[%clk 0:00:42]} 23. Qg4 {[%clk 0:01:25]}  Nf8 {[%clk 0:00:38]} 24. h4 {[%clk 0:01:20]}  Kh8 {[%clk 0:00:33]} 25. h5 {[%clk 0:01:16]}  g5 {[%clk 0:00:30]} 26. Ne2 {[%clk 0:01:16]}  h6 {[%clk 0:00:27]} 27. Ng3 {[%clk 0:01:14]}  Bc8 {[%clk 0:00:25]} 28. Bf5 {[%clk 0:01:13]}  Ne6 {[%clk 0:00:22]} 29. Qf3 {[%clk 0:01:09]}  Bd7 {[%clk 0:00:19]} 30. Rc2 {[%clk 0:01:03]}  Rc8 {[%clk 0:00:16]} 31. Rdc1 {[%clk 0:00:59]}  Kg8 {[%clk 0:00:11]} 32. Bg4 {[%clk 0:00:53]}  Ng7 {[%clk 0:00:09]} 33. Bxd7 {[%clk 0:00:53]}  Rxd7 {[%clk 0:00:09]} 34. Nf5 {[%clk 0:00:53]}  Nxf5 {[%clk 0:00:08]} 35. Qxf5 {[%clk 0:00:53]}  Qe7 {[%clk 0:00:05]} 36. Rxc6 {[%clk 0:00:52]}  Rxc6 {[%clk 0:00:05]} 37. Rxc6 {[%clk 0:00:53]}  Qf7 {[%clk 0:00:04]} 38. Rxf6 {[%clk 0:00:51]}  Qxh5 {[%clk 0:00:02]} 39. Qxd7 {[%clk 0:00:51]}  Qd1+ {[%clk 0:00:02]} 40. Kh2 {[%clk 0:00:51]}  Qh5+ {[%clk 0:00:03]} 41. Qh3 {[%clk 0:00:51]}  g4 {[%clk 0:00:02]} 42. Qxh5 {[%clk 0:00:51]} 1-0


[Site "https://www.chess.com"]

[Event "Titled Tuesday Blitz January 17 Late 2023"]
[White "Liang, Justin"]
[Black "Naroditsky, Daniel"]
[WhiteFideId "2099942"]
[BlackFideId "2026961"]
[WhiteElo "2052"]
[BlackElo "2618"]
[Result "0-1"]
[Round "09"]
[TimeControl "180+2"]
[Date "2023.01.17"]
[WhiteClock "0:00:54"]
[BlackClock "0:02:03"]

1. d4 {[%clk 0:03:00]}  Nf6 {[%clk 0:03:00]} 2. c4 {[%clk 0:03:01]}  g6 {[%clk 0:03:00]} 3. Nc3 {[%clk 0:03:01]}  Bg7 {[%clk 0:03:00]} 4. e4 {[%clk 0:03:02]}  d6 {[%clk 0:03:01]} 5. Nf3 {[%clk 0:03:03]}  O-O {[%clk 0:03:02]} 6. Be2 {[%clk 0:03:04]}  e5 {[%clk 0:03:02]} 7. O-O {[%clk 0:03:04]}  exd4 {[%clk 0:03:03]} 8. Nxd4 {[%clk 0:03:05]}  Re8 {[%clk 0:03:03]} 9. f3 {[%clk 0:03:06]}  Nc6 {[%clk 0:03:02]} 10. Be3 {[%clk 0:03:01]}  Nh5 {[%clk 0:03:02]} 11. Qd2 {[%clk 0:03:01]}  Nxd4 {[%clk 0:03:02]} 12. Bxd4 {[%clk 0:03:01]}  Nf4 {[%clk 0:03:03]} 13. Rfd1 {[%clk 0:03:01]}  Bxd4+ {[%clk 0:03:00]} 14. Qxd4 {[%clk 0:02:59]}  Nxe2+ {[%clk 0:03:01]} 15. Nxe2 {[%clk 0:02:59]}  b6 {[%clk 0:03:02]} 16. b4 {[%clk 0:02:46]}  Bb7 {[%clk 0:02:58]} 17. Nc3 {[%clk 0:02:41]}  Qg5 {[%clk 0:02:57]} 18. Rac1 {[%clk 0:02:32]}  f5 {[%clk 0:02:51]} 19. exf5 {[%clk 0:02:23]}  Bxf3 {[%clk 0:02:47]} 20. Qd2 {[%clk 0:02:22]}  Re1+ {[%clk 0:02:30]} 21. Rxe1 {[%clk 0:02:12]}  Qxd2 {[%clk 0:02:30]} 22. gxf3 {[%clk 0:02:13]}  gxf5 {[%clk 0:02:28]} 23. Nd5 {[%clk 0:02:12]}  Kh8 {[%clk 0:02:25]} 24. Kh1 {[%clk 0:01:50]}  Rg8 {[%clk 0:02:17]} 25. Rg1 {[%clk 0:01:49]}  Qf2 {[%clk 0:02:03]} 26. Rxg8+ {[%clk 0:01:29]}  Kxg8 {[%clk 0:02:04]} 27. Rg1+ {[%clk 0:01:11]}  Kf7 {[%clk 0:02:03]} 28. Rg3 {[%clk 0:00:59]}  Qf1+ {[%clk 0:02:01]} 29. Rg1 {[%clk 0:00:55]}  Qxf3+ {[%clk 0:02:02]} 30. Rg2 {[%clk 0:00:54]}  Qf1+ {[%clk 0:02:03]} 0-1


[Site "https://www.chess.com"]

[Event "Titled Tuesday Blitz January 17 Late 2023"]
[White "Iliaguev, Nisim"]
[Black "Remizov, Yaroslav"]
[WhiteFideId "2817276"]
[BlackFideId "34134015"]
[WhiteElo "2402"]
[BlackElo "2421"]
[Result "0-1"]
[Round "09"]
[TimeControl "180+2"]
[Date "2023.01.17"]
[WhiteClock "0:00:19"]
[BlackClock "0:00:10"]

1. d4 {[%clk 0:03:00]}  d5 {[%clk 0:02:59]} 2. Nf3 {[%clk 0:03:01]}  Nf6 {[%clk 0:02:59]} 3. g3 {[%clk 0:03:02]}  Bf5 {[%clk 0:02:58]} 4. Bg2 {[%clk 0:03:02]}  c6 {[%clk 0:02:57]} 5. O-O {[%clk 0:03:03]}  h6 {[%clk 0:02:56]} 6. c4 {[%clk 0:03:03]}  e6 {[%clk 0:02:56]} 7. Nc3 {[%clk 0:03:04]}  Nbd7 {[%clk 0:02:55]} 8. Nd2 {[%clk 0:03:04]}  Be7 {[%clk 0:02:38]} 9. e4 {[%clk 0:03:04]}  dxe4 {[%clk 0:02:38]} 10. Ndxe4 {[%clk 0:03:05]}  O-O {[%clk 0:02:36]} 11. Qb3 {[%clk 0:03:01]}  Nxe4 {[%clk 0:02:26]} 12. Nxe4 {[%clk 0:03:02]}  Qb6 {[%clk 0:01:43]} 13. Qxb6 {[%clk 0:03:01]}  axb6 {[%clk 0:01:42]} 14. a3 {[%clk 0:03:02]}  Rfd8 {[%clk 0:01:38]} 15. Be3 {[%clk 0:03:00]}  Nf6 {[%clk 0:01:38]} 16. Nc3 {[%clk 0:03:00]}  Bd3 {[%clk 0:01:37]} 17. Rfd1 {[%clk 0:02:34]}  Bxc4 {[%clk 0:01:37]} 18. d5 {[%clk 0:02:14]}  cxd5 {[%clk 0:01:29]} 19. Bxb6 {[%clk 0:02:14]}  Rdc8 {[%clk 0:01:29]} 20. Bd4 {[%clk 0:02:14]}  Nd7 {[%clk 0:01:20]} 21. h4 {[%clk 0:02:08]}  Nc5 {[%clk 0:01:18]} 22. Rab1 {[%clk 0:02:03]}  Nb3 {[%clk 0:01:17]} 23. Be3 {[%clk 0:02:01]}  Bf6 {[%clk 0:01:16]} 24. Bf4 {[%clk 0:01:42]}  Bxc3 {[%clk 0:01:07]} 25. bxc3 {[%clk 0:01:43]}  Rxa3 {[%clk 0:01:08]} 26. h5 {[%clk 0:01:42]}  Rca8 {[%clk 0:01:07]} 27. Rb2 {[%clk 0:01:29]}  Ra2 {[%clk 0:00:59]} 28. Rdb1 {[%clk 0:01:29]}  Rxb2 {[%clk 0:00:58]} 29. Rxb2 {[%clk 0:01:30]}  b5 {[%clk 0:00:58]} 30. g4 {[%clk 0:01:28]}  Nc5 {[%clk 0:00:53]} 31. Be3 {[%clk 0:01:18]}  Nd3 {[%clk 0:00:51]} 32. Rd2 {[%clk 0:01:06]}  Ne1 {[%clk 0:00:49]} 33. Bh1 {[%clk 0:01:01]}  Ra1 {[%clk 0:00:47]} 34. Kh2 {[%clk 0:01:00]}  Nd3 {[%clk 0:00:46]} 35. g5 {[%clk 0:00:57]}  hxg5 {[%clk 0:00:45]} 36. Bxg5 {[%clk 0:00:58]}  f6 {[%clk 0:00:45]} 37. Be3 {[%clk 0:00:57]}  Kf7 {[%clk 0:00:45]} 38. Bf3 {[%clk 0:00:54]}  Ne5 {[%clk 0:00:43]} 39. Bd1 {[%clk 0:00:49]}  Ra3 {[%clk 0:00:33]} 40. h6 {[%clk 0:00:49]}  gxh6 {[%clk 0:00:33]} 41. Bd4 {[%clk 0:00:43]}  Nc6 {[%clk 0:00:32]} 42. Bh5+ {[%clk 0:00:36]}  Kg7 {[%clk 0:00:29]} 43. Bc5 {[%clk 0:00:35]}  Ra2 {[%clk 0:00:26]} 44. Rd1 {[%clk 0:00:31]}  f5 {[%clk 0:00:16]} 45. Rg1+ {[%clk 0:00:30]}  Kf6 {[%clk 0:00:17]} 46. Bd6 {[%clk 0:00:30]}  Ne5 {[%clk 0:00:12]} 47. Rg2 {[%clk 0:00:20]}  Ng4+ {[%clk 0:00:12]} 48. Bxg4 {[%clk 0:00:20]}  fxg4 {[%clk 0:00:13]} 49. Kg3 {[%clk 0:00:20]}  Kf5 {[%clk 0:00:13]} 50. Rg1 {[%clk 0:00:19]}  Rc2 {[%clk 0:00:13]} 51. Re1 {[%clk 0:00:19]}  Rxc3+ {[%clk 0:00:12]} 52. Kg2 {[%clk 0:00:18]}  Bd3 {[%clk 0:00:11]} 53. Re5+ {[%clk 0:00:18]}  Kf6 {[%clk 0:00:11]} 54. Rh5 {[%clk 0:00:18]}  Be4+ {[%clk 0:00:11]} 55. Kh2 {[%clk 0:00:18]}  Kg6 {[%clk 0:00:11]} 56. Rh4 {[%clk 0:00:17]}  h5 {[%clk 0:00:11]} 57. Be5 {[%clk 0:00:16]}  Rf3 {[%clk 0:00:11]} 58. Bg3 {[%clk 0:00:17]}  b4 {[%clk 0:00:11]} 59. Kg1 {[%clk 0:00:17]}  b3 {[%clk 0:00:11]} 60. Be5 {[%clk 0:00:18]}  Rd3 {[%clk 0:00:10]} 61. Kf1 {[%clk 0:00:18]}  Rd2 {[%clk 0:00:09]} 62. Ke1 {[%clk 0:00:18]}  b2 {[%clk 0:00:10]} 63. Bxb2 {[%clk 0:00:18]}  Rxb2 {[%clk 0:00:10]} 64. Rh2 {[%clk 0:00:18]}  g3 {[%clk 0:00:10]} 65. Rh4 {[%clk 0:00:19]}  gxf2+ {[%clk 0:00:10]} 66. Kf1 {[%clk 0:00:19]}  Bd3+ {[%clk 0:00:10]} 0-1


[Site "https://www.chess.com"]

[Event "Titled Tuesday Blitz January 17 Late 2023"]
[White "Bjelobrk, Igor"]
[Black "Mikaelyan, Arman"]
[WhiteFideId "4300726"]
[BlackFideId "13304852"]
[WhiteElo "2403"]
[BlackElo "2523"]
[Result "1-0"]
[Round "09"]
[TimeControl "180+2"]
[Date "2023.01.17"]
[WhiteClock "0:00:17"]
[BlackClock "0:00:01"]

1. Nf3 {[%clk 0:02:56]}  Nf6 {[%clk 0:02:57]} 2. c4 {[%clk 0:02:55]}  g6 {[%clk 0:02:56]} 3. Nc3 {[%clk 0:02:53]}  Bg7 {[%clk 0:02:57]} 4. e4 {[%clk 0:02:53]}  d6 {[%clk 0:02:50]} 5. d4 {[%clk 0:02:51]}  O-O {[%clk 0:02:50]} 6. Be2 {[%clk 0:02:50]}  Nbd7 {[%clk 0:02:49]} 7. Be3 {[%clk 0:02:48]}  e5 {[%clk 0:02:49]} 8. d5 {[%clk 0:02:44]}  Ng4 {[%clk 0:02:43]} 9. Bd2 {[%clk 0:02:43]}  f5 {[%clk 0:02:35]} 10. Ng5 {[%clk 0:02:43]}  Ndf6 {[%clk 0:01:59]} 11. h3 {[%clk 0:02:29]}  Nh6 {[%clk 0:01:58]} 12. Qc2 {[%clk 0:02:09]}  Nf7 {[%clk 0:01:51]} 13. Ne6 {[%clk 0:02:08]}  Bxe6 {[%clk 0:01:48]} 14. dxe6 {[%clk 0:02:08]}  Nh6 {[%clk 0:01:49]} 15. Bxh6 {[%clk 0:02:07]}  Bxh6 {[%clk 0:01:49]} 16. exf5 {[%clk 0:02:07]}  gxf5 {[%clk 0:01:45]} 17. Qxf5 {[%clk 0:02:08]}  Qe7 {[%clk 0:01:44]} 18. O-O {[%clk 0:02:02]}  Rae8 {[%clk 0:01:39]} 19. Nd5 {[%clk 0:01:57]}  Qg7 {[%clk 0:01:16]} 20. Bh5 {[%clk 0:01:32]}  Nxh5 {[%clk 0:01:09]} 21. Qxh5 {[%clk 0:01:30]}  Rxe6 {[%clk 0:01:09]} 22. Rae1 {[%clk 0:01:08]}  Rg6 {[%clk 0:01:07]} 23. g3 {[%clk 0:01:07]}  Rg5 {[%clk 0:01:07]} 24. Qh4 {[%clk 0:01:06]}  Kh8 {[%clk 0:01:04]} 25. Kg2 {[%clk 0:00:59]}  Qf7 {[%clk 0:00:56]} 26. f4 {[%clk 0:00:54]}  Rf5 {[%clk 0:00:39]} 27. Qxh6 {[%clk 0:00:51]}  Rh5 {[%clk 0:00:29]} 28. Qf6+ {[%clk 0:00:34]}  Qxf6 {[%clk 0:00:29]} 29. Nxf6 {[%clk 0:00:35]}  Rxf6 {[%clk 0:00:30]} 30. fxe5 {[%clk 0:00:35]}  Rxf1 {[%clk 0:00:28]} 31. Kxf1 {[%clk 0:00:27]}  dxe5 {[%clk 0:00:23]} 32. Kg2 {[%clk 0:00:27]}  Rf5 {[%clk 0:00:17]} 33. g4 {[%clk 0:00:26]}  Rf4 {[%clk 0:00:17]} 34. b3 {[%clk 0:00:25]}  e4 {[%clk 0:00:17]} 35. Kg3 {[%clk 0:00:21]}  Rf3+ {[%clk 0:00:18]} 36. Kg2 {[%clk 0:00:19]}  Rf4 {[%clk 0:00:18]} 37. Re3 {[%clk 0:00:18]}  Kg7 {[%clk 0:00:10]} 38. Kg3 {[%clk 0:00:18]}  Rf1 {[%clk 0:00:11]} 39. Rxe4 {[%clk 0:00:19]}  Rg1+ {[%clk 0:00:09]} 40. Kh4 {[%clk 0:00:19]}  Kf7 {[%clk 0:00:08]} 41. Rf4+ {[%clk 0:00:18]}  Kg7 {[%clk 0:00:08]} 42. Re4 {[%clk 0:00:19]}  Kf7 {[%clk 0:00:08]} 43. Rf4+ {[%clk 0:00:19]}  Ke7 {[%clk 0:00:08]} 44. g5 {[%clk 0:00:18]}  Rg2 {[%clk 0:00:08]} 45. a4 {[%clk 0:00:17]}  Rb2 {[%clk 0:00:08]} 46. Rf3 {[%clk 0:00:17]}  c6 {[%clk 0:00:04]} 47. Kh5 {[%clk 0:00:17]}  Rg2 {[%clk 0:00:03]} 48. Kh6 {[%clk 0:00:17]}  Ke6 {[%clk 0:00:03]} 49. h4 {[%clk 0:00:17]}  Rg4 {[%clk 0:00:04]} 50. Rh3 {[%clk 0:00:17]}  Kf7 {[%clk 0:00:01]} 51. Kxh7 {[%clk 0:00:17]}  Rf4 {[%clk 0:00:01]} 52. h5 {[%clk 0:00:17]}  Ke6 {[%clk 0:00:01]} 53. g6 {[%clk 0:00:17]} 1-0


[Site "https://www.chess.com"]